bitfinex/quotes_SOLUSD_20241222
["timestamp","ask_amount","ask_price","bid_price","bid_amount"]
[1734856640234,1.01446792,184.85,184.84,0.02617566]
[1734856640441,20.0,184.86,184.84,0.02617566]
[1734856641037,1.01443255,184.85,184.84,0.02617566]
[1734856641237,20.0,184.86,184.84,0.02617566]
[1734856642169,6.4249,184.89,184.84,0.02617566]
[1734856643554,6.4249,184.94,184.86,17.67344664]
[1734856643859,5.23668918,184.98,184.89,17.67344664]
[1734856644061,1.01380073,184.97,184.89,17.67344664]
[1734856644239,1.01377943,184.98,184.9,17.67344664]
[1734856645741,8.0605,184.99,184.91,17.67344664]
[1734856645940,8.0605,184.99,184.92,17.67344664]
[1734856646136,8.0605,184.99,184.91,28.76680578]
[1734856646360,1.01372406,184.98,184.91,28.76680578]
[1734856647464,1.01372406,184.98,184.9,28.76680578]
[1734856647666,8.0605,184.99,184.92,28.76680578]
[1734856648176,1.01371809,184.98,184.91,28.76680578]
[1734856648552,6.4249,184.99,184.93,28.76680578]
[1734856648755,6.4249,184.99,184.94,28.76680578]
[1734856649150,6.4249,184.99,184.93,28.76680578]
[1734856649469,6.4249,184.99,184.92,28.76680578]
[1734856649678,1.01362055,184.98,184.89,28.76680578]
[1734856649847,1.01362055,184.98,184.87,28.76680578]
[1734856650055,20.0,184.96,184.87,28.76680578]
[1734856650269,1.01393157,184.95,184.87,28.76680578]
[1734856652385,1.01397849,184.98,184.89,28.76680578]
[1734856652602,1.01397849,184.98,184.91,28.76680578]
[1734856652755,6.4249,184.99,184.92,28.76680578]
[1734856652961,1.6305,185.02,184.95,28.76680578]
[1734856653496,1.6305,185.02,184.96,28.76680578]
[1734856654970,6.3398,185.04,184.99,28.76680578]
[1734856655270,1.6305,185.07,184.97,28.76680578]
[1734856655492,1.01327841,185.06,184.97,28.76680578]
[1734856655992,1.6305,185.07,185.01,28.76680578]
[1734856656173,6.1947,185.08,185.01,28.76680578]
[1734856656359,1.01319337,185.07,184.99,13.5141]
[1734856656787,1.01319337,185.07,184.98,28.76680578]
[1734856657288,0.18784701,185.08,184.98,28.76680578]
[1734856658683,0.18784701,185.08,185.0,28.76680578]
[1734856659191,0.18784701,185.08,184.99,52.54368978]
[1734856660388,0.18784701,185.08,184.98,13.5145]
[1734856660688,0.18784701,185.08,184.98,42.28130578]
[1734856661984,0.18784701,185.08,184.96,0.81054902]
[1734856662197,0.18784701,185.08,184.95,28.76680578]
[1734856662384,0.7042287,185.08,184.96,28.76680578]
[1734856663185,0.7042287,185.08,184.97,28.76680578]
[1734856663360,0.7042287,185.08,184.98,28.76680578]
[1734856664477,0.7042287,185.08,184.85,27.0489]
[1734856664478,20.0,185.03,184.84,0.02617566]
[1734856664794,23.776884,184.9,184.84,0.02617566]
[1734856664960,20.0,184.87,184.84,0.02617566]
[1734856665159,0.51638169,184.86,184.84,0.02617566]
[1734856669294,24.29326569,184.86,184.84,0.02617566]
[1734856674100,0.51638169,184.86,184.84,0.02617566]
[1734856676301,0.51638169,184.9,184.84,0.02617566]
[1734856676687,24.29326569,184.9,184.84,0.02617566]
[1734856677194,20.0,184.87,184.84,0.02617566]
[1734856677386,0.51638169,184.86,184.84,0.02617566]
[1734856678987,0.51638169,184.89,184.84,0.02617566]
[1734856679199,0.51638169,184.9,184.84,0.02617566]
[1734856679400,0.51638169,184.93,184.84,0.02617566]
[1734856680781,20.51638169,184.93,184.84,0.02617566]
[1734856681322,4.0544,184.99,184.84,0.02617566]
[1734856681323,6.64018169,185.01,184.86,28.81746829]
[1734856681481,6.64018169,185.01,184.87,23.776884]
[1734856681672,6.64018169,185.01,184.87,6.5139]
[1734856682497,20.0,184.98,184.87,6.5139]
[1734856682691,0.51638169,184.97,184.87,6.5139]
[1734856683003,0.51638169,185.0,184.89,28.81746829]
[1734856683202,0.51638169,185.05,184.91,28.81746829]
[1734856683418,0.51638169,185.05,184.92,53.40518809]
[1734856683582,0.51638169,185.05,184.92,24.5877198]
[1734856683979,0.51638169,185.05,184.93,28.81746829]
[1734856684313,0.51638169,185.05,184.94,24.58764224]
[1734856684492,0.51638169,185.08,184.94,23.776884]
[1734856684811,24.29326569,185.08,184.94,23.776884]
[1734856684984,24.29326569,185.08,184.94,24.58771925]
[1734856685699,20.0,185.05,184.94,24.58771925]
[1734856685899,24.29326569,185.04,184.9,52.59435229]
[1734856686105,20.0,185.01,184.9,24.58782139]
[1734856686302,0.51638169,185.0,184.9,24.58782139]
[1734856686906,20.0,185.01,184.9,24.58782139]
[1734856687097,0.51638169,185.0,184.9,53.40528968]
[1734856687808,0.51638169,185.03,184.93,23.776884]
[1734856688117,0.51638169,185.03,184.91,28.81746829]
[1734856688817,20.0,184.98,184.83,6.5139]
[1734856688990,20.0,184.94,184.83,6.5139]
[1734856689308,20.0,184.9,184.8,2.1838985]
[1734856689617,0.51638169,184.89,184.8,2.1838985]
[1734856691081,0.51638169,184.89,184.8,0.6005985]
[1734856691274,20.0,184.86,184.8,0.6005985]
[1734856691498,0.51638169,184.85,184.8,0.6005985]
[1734856692686,0.51638169,184.88,184.8,0.6005985]
[1734856693892,0.46390836,184.9,184.8,0.6005985]
[1734856694394,24.24079236,184.9,184.8,0.6005985]
[1734856694594,20.0,184.87,184.8,0.6005985]
[1734856694813,0.41143503,184.86,184.8,0.6005985]
[1734856696412,20.0,184.87,184.8,0.6005985]
[1734856696615,0.41143503,184.92,184.8,29.41806679]
[1734856697023,0.41143503,184.92,184.8,0.6005985]
[1734856697603,0.41143503,184.91,184.8,0.6005985]
[1734856697804,0.41143503,184.93,184.8,0.6005985]
[1734856698008,24.18831903,184.93,184.8,0.6005985]
[1734856698213,20.0,184.9,184.8,0.6005985]
[1734856698431,0.41143503,184.89,184.8,0.6005985]
[1734856699223,24.18831903,184.89,184.8,0.6005985]
[1734856699698,20.0,184.86,184.8,0.6005985]
[1734856699900,20.0,184.9,184.8,0.6005985]
[1734856699901,0.41143503,184.85,184.8,0.6005985]
[1734856700105,20.0,184.86,184.8,0.6005985]
[1734856700428,0.41143503,184.85,184.8,0.6005985]
[1734856702031,0.41143503,184.89,184.8,0.6005985]
[1734856703229,20.0,184.87,184.8,0.6005985]
[1734856703519,0.41143503,184.86,184.8,0.6005985]
[1734856704312,24.18831903,184.86,184.8,0.6005985]
[1734856707337,20.0,184.73,184.61,0.6911367]
[1734856707643,20.0,184.69,184.61,0.6911367]
[1734856707833,0.41143503,184.68,184.61,0.6911367]
[1734856711253,27.838084,184.67,184.61,0.6911367]
[1734856711426,20.0,184.6,184.47,28.81746829]
[1734856711630,0.41143503,184.59,184.49,28.81746829]
[1734856712351,0.41143503,184.59,184.48,0.81272223]
[1734856712520,0.41143503,184.59,184.47,29.63027662]
[1734856712721,1.6264,184.68,184.49,28.81746829]
[1734856712722,20.0,184.65,184.49,28.81746829]
[1734856713019,0.41143503,184.64,184.5,0.81263427]
[1734856713769,20.0,184.64,184.5,23.776884]
[1734856713939,0.41143503,184.63,184.5,23.776884]
[1734856714117,0.41143503,184.63,184.53,20.0]
[1734856714322,0.41143503,184.66,184.54,23.776884]
[1734856714630,0.41143503,184.66,184.54,23.85961253]
[1734856715328,0.41143503,184.65,184.54,23.776884]
[1734856716229,0.41143503,184.64,184.54,23.776884]
[1734856716445,0.41143503,184.66,184.54,23.776884]
[1734856718727,0.41143503,184.66,184.54,24.58942202]
[1734856718934,0.41143503,184.66,184.54,66.95379031]
[1734856719433,0.41143503,184.67,184.54,66.95379031]
[1734856719942,0.41143503,184.73,184.54,66.95379031]
[1734856721158,20.0,184.71,184.54,66.95379031]
[1734856721347,0.41143503,184.7,184.54,66.95379031]
[1734856722163,24.18831903,184.7,184.54,38.13632202]
[1734856722345,20.0,184.67,184.54,38.13632202]
[1734856722543,0.41143503,184.66,184.54,38.13632202]
[1734856725866,0.41143503,184.66,184.57,20.0]
[1734856726050,20.41143503,184.71,184.58,23.776884]
[1734856726363,0.41143503,184.71,184.6,52.59435229]
[1734856726662,0.41143503,184.71,184.62,23.776884]
[1734856727028,0.41143503,184.71,184.59,0.81218631]
[1734856727231,0.41143503,184.71,184.58,23.776884]
[1734856728550,0.41143503,184.71,184.6,23.776884]
[1734856729871,20.41143503,184.72,184.62,23.776884]
[1734856731159,20.41143503,184.72,184.61,13.542]
[1734856731669,20.41143503,184.72,184.59,0.81225346]
[1734856731968,20.41143503,184.72,184.59,23.776884]
[1734856735657,20.41143503,184.72,184.59,41.53892462]
[1734856735855,20.41143503,184.72,184.61,41.53892462]
[1734856736163,20.0,184.72,184.63,23.776884]
[1734856736744,20.0,184.72,184.65,23.776884]
[1734856736945,6.6228,184.75,184.67,23.776884]
[1734856738656,6.6228,184.75,184.64,14.35120415]
[1734856738865,0.41143503,184.74,184.65,23.776884]
[1734856739373,0.41143503,184.74,184.61,14.35399822]
[1734856739556,20.0,184.72,184.59,17.76204062]
[1734856739872,0.41143503,184.71,184.58,13.5441]
[1734856740056,0.41143503,184.71,184.42,0.6911367]
[1734856740057,26.6564,184.66,184.42,0.6911367]
[1734856740365,20.0,184.58,184.44,17.76204062]
[1734856740555,0.41143503,184.57,184.44,17.76204062]
[1734856741875,0.41143503,184.57,184.47,17.76204062]
[1734856742457,1.5749,184.59,184.49,23.776884]
[1734856742458,1.98633503,184.59,184.49,23.776884]
[1734856742644,0.41143503,184.59,184.49,41.53892462]
[1734856742839,0.41143503,184.62,184.48,18.5748443]
[1734856743056,0.41143503,184.62,184.47,17.76204062]
[1734856743343,0.41143503,184.62,184.5,17.76204062]
[1734856743539,0.41143503,184.62,184.52,23.776884]
[1734856743791,1.98633503,184.65,184.54,23.776884]
[1734856744563,1.98633503,184.65,184.51,23.776884]
[1734856744767,1.98633503,184.65,184.5,23.776884]
[1734856744975,20.0,184.62,184.47,28.88881783]
[1734856745267,0.41143503,184.61,184.48,23.776884]
[1734856746341,0.41143503,184.61,184.48,24.58963893]
[1734856747757,0.41143503,184.61,184.48,23.776884]
[1734856748879,0.41143503,184.61,184.5,23.776884]
[1734856749061,20.0,184.6,184.51,0.8126407]
[1734856749476,20.41143503,184.6,184.5,24.58955779]
[1734856749781,0.41143503,184.6,184.5,24.58955779]
[1734856750078,0.41143503,184.61,184.5,0.81267379]
[1734856750284,0.41143503,184.61,184.48,23.776884]
[1734856751787,0.41143503,184.61,184.5,23.776884]
[1734856752172,0.41143503,184.61,184.47,42.44071783]
[1734856752470,6.6564,184.57,184.45,28.97154636]
[1734856752786,20.0,184.54,184.45,0.08272853]
[1734856752990,0.41143503,184.53,184.45,0.08272853]
[1734856754892,24.18831903,184.53,184.45,0.08272853]
[1734856758174,0.41143503,184.53,184.45,0.08272853]
[1734856760986,20.41143503,184.54,184.45,0.08272853]
[1734856761161,20.41143503,184.54,184.45,23.85961253]
[1734856765998,20.0,184.54,184.45,23.85961253]
[1734856766171,20.0,184.54,184.46,0.81294376]
[1734856769000,0.41143503,184.53,184.45,0.08272853]
[1734856769493,20.0,184.52,184.45,0.08272853]
[1734856769697,0.41143503,184.51,184.45,0.08272853]
[1734856772110,20.41143503,184.54,184.45,0.08272853]
[1734856774683,20.0,184.53,184.45,0.08272853]
[1734856774884,0.41143503,184.52,184.45,0.08272853]
[1734856778700,20.41143503,184.53,184.45,0.08272853]
[1734856781293,20.0,184.53,184.45,0.08272853]
[1734856781607,20.0,184.54,184.46,23.776884]
[1734856791301,0.41143503,184.53,184.42,32.03906468]
[1734856791706,0.41143503,184.53,184.43,23.776884]
[1734856792218,0.41143503,184.53,184.43,41.56941198]
[1734856792422,0.41143503,184.53,184.43,34.89847167]
[1734856792800,20.0,184.54,184.45,23.776884]
[1734856795112,20.0,184.52,184.42,0.6911367]
[1734856795314,0.41143503,184.51,184.42,0.6911367]
[1734856796353,20.0,184.52,184.42,12.62583263]
[1734856796937,20.0,184.52,184.43,23.776884]
[1734856797226,0.41143503,184.51,184.43,23.776884]
[1734856797423,20.0,184.52,184.43,23.776884]
[1734856797802,0.41143503,184.51,184.43,23.776884]
[1734856798005,0.41143503,184.51,184.42,0.6911367]
[1734856799340,20.0,184.47,184.42,0.6911367]
[1734856799506,20.41143503,184.46,184.42,0.6911367]
[1734856800224,20.0,184.45,184.42,0.6911367]
[1734856800420,0.41143503,184.44,184.42,0.6911367]
[1734856800856,24.18831903,184.44,184.42,0.6911367]
[1734856801054,24.18831903,184.44,184.29,12.01777599]
[1734856801055,7.6792,184.43,184.29,12.01777599]
[1734856801216,7.6792,184.43,184.29,0.08272853]
[1734856801217,20.0,184.4,184.29,0.08272853]
[1734856801411,0.41143503,184.39,184.29,0.08272853]
[1734856801807,0.41143503,184.42,184.33,11.12158767]
[1734856802143,0.41143503,184.42,184.29,14.46170681]
[1734856802312,0.41143503,184.42,184.32,17.81484374]
[1734856802738,0.41143503,184.42,184.33,23.776884]
[1734856803136,0.41143503,184.42,184.3,17.81484374]
[1734856803339,0.41143503,184.42,184.29,0.08272853]
[1734856803340,20.0,184.39,184.29,0.08272853]
[1734856803662,0.41143503,184.38,184.29,0.08272853]
[1734856805122,29.919684,184.33,184.24,0.6911367]
[1734856805340,29.919684,184.33,184.16,17.81484374]
[1734856805341,20.0,184.3,184.16,17.81484374]
[1734856805520,24.18831903,184.29,184.16,17.81484374]
[1734856805925,24.18831903,184.29,184.15,17.81484374]
[1734856806216,24.18831903,184.29,184.13,14.39088167]
[1734856806415,24.18831903,184.29,184.15,17.81484374]
[1734856806958,21.5364,184.26,184.14,23.776884]
[1734856807120,24.18831903,184.25,184.12,17.81484374]
[1734856807435,23.776884,184.2,184.06,18.62929254]
[1734856807639,20.0,184.17,184.09,17.81484374]
[1734856807848,0.41143503,184.16,184.08,17.81484374]
[1734856808424,0.41143503,184.2,184.07,17.81484374]
[1734856808655,7.6792,184.16,184.05,0.6911367]
[1734856808840,0.41143503,184.15,184.05,0.6911367]
[1734856809257,20.0,184.13,184.05,0.6911367]
[1734856809439,0.41143503,184.12,184.05,0.6911367]
[1734856810281,24.18831903,184.12,184.05,0.6911367]
[1734856810478,20.0,184.09,184.05,0.1911367]
[1734856810634,0.41143503,184.08,184.05,0.1911367]
[1734856811055,0.41143503,184.08,183.97,18.62974624]
[1734856811403,0.41143503,184.08,183.99,17.81484374]
[1734856811524,0.41143503,184.08,184.0,17.81484374]
[1734856811927,20.0,184.09,184.0,17.81484374]
[1734856812157,20.0,184.13,184.01,17.81484374]
[1734856812338,0.41143503,184.12,184.01,17.81484374]
[1734856812779,0.41143503,184.12,184.05,17.81484374]
[1734856813079,0.41143503,184.15,184.04,0.814707]
[1734856813228,0.41143503,184.15,183.98,13.71389]
[1734856813229,0.41143503,184.15,184.02,17.81484374]
[1734856813433,0.41143503,184.15,183.9,8.72955586]
[1734856813434,4.0729,184.14,183.95,17.81484374]
[1734856813741,4.0729,184.14,183.92,17.81484374]
[1734856813742,1.5364,184.11,183.92,17.81484374]
[1734856814042,24.18831903,184.1,183.95,17.81484374]
[1734856814557,20.0,184.07,183.94,17.81484374]
[1734856814855,0.41143503,184.06,183.95,17.81484374]
[1734856815534,0.41143503,184.09,183.98,17.81484374]
[1734856815747,1.94783503,184.11,184.01,17.81484374]
[1734856815931,6.1428,184.12,184.04,17.81484374]
[1734856816137,6.1428,184.12,184.05,29.03648595]
[1734856816373,6.1428,184.12,184.03,52.81336995]
[1734856817236,6.1428,184.12,184.04,29.03648595]
[1734856817432,7.9116,184.17,184.06,29.03648595]
[1734856817760,0.41143503,184.16,184.06,29.03648595]
[1734856818878,0.41143503,184.16,184.07,29.03648595]
[1734856819749,0.41143503,184.16,184.08,29.03648595]
[1734856819932,7.9116,184.17,184.08,29.03648595]
[1734856820850,6.2612,184.17,184.1,29.03648595]
[1734856821053,6.2612,184.17,184.08,29.03648595]
[1734856821360,0.41143503,184.16,184.06,0.81458142]
[1734856821532,0.41143503,184.16,184.06,29.85106737]
[1734856821855,0.41143503,184.16,184.04,29.03648595]
[1734856822064,0.41143503,184.16,184.03,29.85114999]
[1734856822555,0.41143503,184.16,184.05,29.03648595]
[1734856822964,0.41143503,184.16,184.06,29.03648595]
[1734856823458,6.2612,184.17,184.1,29.03648595]
[1734856823648,6.2612,184.17,184.09,29.03648595]
[1734856823850,6.2612,184.17,184.1,0.81450694]
[1734856824251,6.2612,184.17,184.09,29.03648595]
[1734856824769,6.2612,184.17,184.09,29.85097871]
[1734856824955,6.2612,184.21,184.11,29.03648595]
[1734856825156,6.2612,184.21,184.12,29.03648595]
[1734856825879,6.67263503,184.26,184.13,29.03648595]
[1734856826170,6.67263503,184.26,184.12,52.81336995]
[1734856826554,20.0,184.23,184.13,29.03648595]
[1734856826754,6.67263503,184.26,184.13,29.03648595]
[1734856828070,20.0,184.22,184.1,29.03648595]
[1734856828283,20.0,184.22,184.08,29.03648595]
[1734856828284,0.41143503,184.21,184.08,29.03648595]
[1734856828857,0.41143503,184.21,184.07,29.03648595]
[1734856829060,1.6504,184.2,184.06,42.61828595]
[1734856829354,0.41143503,184.19,184.06,42.61828595]
[1734856829879,6.2612,184.18,184.06,42.61828595]
[1734856830043,0.41143503,184.17,184.06,42.61828595]
[1734856830401,0.41143503,184.17,184.07,29.03648595]
[1734856831566,0.41143503,184.17,184.04,29.03648595]
[1734856832582,20.0,184.15,184.02,29.03648595]
[1734856832785,0.41143503,184.14,184.01,29.03648595]
[1734856833084,20.0,184.11,183.88,7.8185]
[1734856833282,20.0,184.09,183.95,29.03648595]
[1734856833463,6.2612,184.07,183.95,29.03648595]
[1734856833663,20.0,184.04,183.95,29.03648595]
[1734856834884,6.2612,184.07,183.97,29.03648595]
[1734856835079,0.41143503,184.06,183.97,29.03648595]
[1734856835376,0.41143503,184.06,183.95,29.03648595]
[1734856835581,0.41143503,184.06,183.93,29.03648595]
[1734856835980,20.0,184.04,183.93,29.03648595]
[1734856836184,0.41143503,184.04,183.88,0.81543429]
[1734856836485,20.41143503,184.04,183.88,14.41123429]
[1734856836679,20.41143503,184.04,183.88,29.03648595]
[1734856836986,20.41143503,184.04,183.9,29.03648595]
[1734856837184,24.48663503,184.04,183.9,29.03648595]
[1734856837479,24.48663503,184.04,183.87,14.2872367]
[1734856837670,24.48663503,184.04,183.9,29.03648595]
[1734856838187,23.776884,184.03,183.9,29.03648595]
[1734856838373,20.0,184.0,183.9,29.03648595]
[1734856838575,0.41143503,184.02,183.91,0.81547965]
[1734856838772,0.41143503,184.03,183.92,29.03648595]
[1734856838982,0.41143503,184.03,183.93,0.81517577]
[1734856839486,20.0,184.04,183.94,29.03648595]
[1734856839681,1.91783503,184.05,183.94,29.03648595]
[1734856841187,20.0,184.04,183.94,29.03648595]
[1734856841429,0.41143503,184.03,183.92,29.03648595]
[1734856842761,0.41143503,184.03,183.94,29.03648595]
[1734856844171,0.41143503,184.03,183.92,29.03648595]
[1734856844487,0.41143503,184.03,183.9,14.40932039]
[1734856844691,0.41143503,184.03,183.93,29.03648595]
[1734856847393,1.5064,184.05,183.95,29.03648595]
[1734856847586,1.5064,184.05,183.97,29.03648595]
[1734856847763,1.5064,184.1,184.01,29.03648595]
[1734856847968,1.5064,184.1,184.03,29.03648595]
[1734856848689,6.2475,184.12,184.03,29.03648595]
[1734856849202,0.41143503,184.11,184.03,29.03648595]
[1734856849609,6.2475,184.12,184.04,29.03648595]
[1734856850392,0.41143503,184.11,184.02,29.03648595]
[1734856851117,0.41143503,184.11,183.99,14.4022794]
[1734856851292,20.0,184.08,183.93,29.03648595]
[1734856851481,20.0,184.03,183.92,29.03648595]
[1734856851680,0.41143503,184.02,183.92,29.03648595]
[1734856851893,0.41143503,184.02,183.93,29.03648595]
[1734856852084,20.0,184.03,183.93,29.03648595]
[1734856852505,0.41143503,184.05,183.95,29.03648595]
[1734856853004,6.2475,184.06,183.97,29.03648595]
[1734856853599,6.2475,184.06,183.98,0.81501164]
[1734856854603,6.2475,184.06,183.99,29.03648595]
[1734856856006,7.9976,184.1,184.01,29.03648595]
[1734856856995,7.9976,184.1,184.02,0.81485828]
[1734856857600,5.23668918,184.13,184.04,23.776884]
[1734856857601,5.70059754,184.13,184.04,23.776884]
[1734856857783,6.4912,184.15,184.09,29.03648595]
[1734856857980,6.4912,184.15,184.07,29.03648595]
[1734856858316,0.46390836,184.14,184.0,29.03648595]
[1734856858477,0.46390836,184.13,183.98,29.03648595]
[1734856858678,10.5641,184.15,183.98,29.85141846]
[1734856858879,0.46390836,184.14,184.0,29.03648595]
[1734856859079,0.46390836,184.14,184.02,29.03648595]
[1734856859604,0.46390836,184.13,184.02,29.03648595]
[1734856860085,20.0,184.12,184.02,29.03648595]
[1734856861303,12.78653197,184.15,184.04,29.03648595]
[1734856861304,0.46390836,184.14,184.04,29.03648595]
[1734856861683,20.0,184.12,184.04,29.03648595]
[1734856861878,0.46390836,184.14,184.04,29.03648595]
[1734856862084,0.46390836,184.14,184.05,0.81471065]
[1734856864117,6.95510836,184.15,184.05,0.81471065]
[1734856864423,0.46390836,184.14,184.05,0.81471065]
[1734856864916,6.4912,184.15,184.05,0.81471065]
[1734856865915,6.4912,184.15,184.06,23.776884]
[1734856866223,6.4912,184.15,184.08,29.03648595]
[1734856866384,15.3858447,184.2,184.1,29.03648595]
[1734856866909,15.3858447,184.2,184.11,0.81441798]
[1734856867125,15.3858447,184.2,184.13,29.03648595]
[1734856867126,8.43073634,184.2,184.13,29.03648595]
[1734856867289,0.46390836,184.23,184.14,0.81432095]
[1734856868185,8.8946447,184.24,184.14,29.8508069]
[1734856868492,6.95510836,184.25,184.14,29.8508069]
[1734856868891,6.4912,184.25,184.16,29.03648595]
[1734856869101,6.4912,184.25,184.17,29.85064823]
[1734856869491,6.4912,184.25,184.18,29.03648595]
[1734856869706,6.4912,184.25,184.17,29.03648595]
[1734856869910,6.4912,184.25,184.18,0.81409113]
[1734856870679,6.4912,184.25,184.19,29.03648595]
[1734856870884,6.4912,184.25,184.18,0.81399802]
[1734856872405,0.46390836,184.24,184.15,0.81410307]
[1734856872612,6.95510836,184.25,184.15,0.81410307]
[1734856872997,6.95510836,184.25,184.15,29.85058902]
[1734856873785,6.4912,184.25,184.16,29.03648595]
[1734856874084,6.4912,184.25,184.17,0.81414203]
[1734856874287,0.46390836,184.24,184.14,29.03648595]
[1734856874710,6.95510836,184.25,184.15,0.81426525]
[1734856875010,6.95510836,184.25,184.15,29.8507512]
[1734856875211,6.95510836,184.25,184.15,0.81426525]
[1734856876324,6.95510836,184.25,184.15,29.8507512]
[1734856877504,6.4912,184.25,184.16,29.03648595]
[1734856877831,6.35712501,184.25,184.17,0.8141837]
[1734856878304,6.35712501,184.25,184.17,29.85066965]
[1734856878501,6.35712501,184.25,184.18,29.03648595]
[1734856878711,6.35712501,184.25,184.19,0.81409478]
[1734856880324,6.35712501,184.25,184.19,29.85058073]
[1734856880526,1.5547,184.31,184.21,29.03648595]
[1734856880831,7.9219,184.31,184.21,29.03648595]
[1734856881000,7.9219,184.31,184.22,29.03648595]
[1734856881334,7.9219,184.31,184.24,29.03648595]
[1734856881630,7.9219,184.31,184.25,0.8138403]
[1734856881827,0.46390836,184.3,184.21,0.81385146]
[1734856881998,0.46390836,184.3,184.19,0.81404724]
[1734856882196,0.46390836,184.3,184.17,29.03648595]
[1734856883105,20.0,184.28,184.17,29.03648595]
[1734856883300,0.46390836,184.27,184.17,29.85061548]
[1734856884340,0.46390836,184.27,184.16,29.03648595]
[1734856884506,0.46390836,184.27,184.14,29.03648595]
[1734856885531,24.53400836,184.27,184.14,29.03648595]
[1734856886313,24.53400836,184.27,184.15,29.03648595]
[1734856886519,20.46390836,184.27,184.16,29.03648595]
[1734856887521,20.46390836,184.27,184.16,29.85064516]
[1734856888439,20.46390836,184.27,184.16,29.03648595]
[1734856890147,20.46390836,184.27,184.16,17.84866649]
[1734856891742,20.46390836,184.27,184.17,17.84866649]
[1734856892244,0.46390836,184.27,184.15,17.84866649]
[1734856892414,20.0,184.23,184.14,17.84866649]
[1734856892610,20.0,184.23,184.15,17.84866649]
[1734856892815,20.0,184.23,184.16,18.66291502]
[1734856893032,6.3672,184.26,184.17,17.84866649]
[1734856893213,6.3672,184.26,184.12,13.5774]
[1734856893214,6.3672,184.26,184.19,17.84866649]
[1734856894338,6.3672,184.26,184.2,17.84866649]
[1734856894628,6.3672,184.26,184.2,18.66266053]
[1734856895619,8.0778,184.31,184.21,41.62555049]
[1734856896129,8.0778,184.31,184.22,18.66257796]
[1734856896336,8.0778,184.31,184.23,17.84866649]
[1734856896539,8.0778,184.31,184.25,17.84866649]
[1734856896718,6.5231,184.31,184.26,18.66245524]
[1734856898039,8.0346,184.35,184.26,18.66245524]
[1734856899039,20.0,184.32,184.21,42.43927515]
[1734856899222,0.46390836,184.31,184.21,41.62555049]
[1734856899533,0.46390836,184.31,184.17,17.84866649]
[1734856899908,0.46390836,184.31,184.18,17.84866649]
[1734856903326,0.46390836,184.31,184.19,18.66272386]
[1734856904548,2.66263889,184.31,184.19,18.66272386]
[1734856908341,2.66263889,184.31,184.2,17.84866649]
[1734856909146,2.66263889,184.31,184.19,18.66267413]
[1734856909949,2.66263889,184.31,184.2,17.84866649]
[1734856911150,2.66263889,184.31,184.21,0.81396698]
[1734856911346,20.0,184.28,184.18,17.84866649]
[1734856911538,0.46390836,184.27,184.18,17.84866649]
[1734856911858,0.46390836,184.29,184.18,17.84866649]
[1734856913838,8.49850836,184.3,184.19,0.81410288]
[1734856914959,8.49850836,184.3,184.18,17.84866649]
[1734856916427,8.49850836,184.3,184.19,24.59095464]
[1734856918447,8.49850836,184.3,184.19,0.81407064]
[1734856918671,8.49850836,184.3,184.18,17.84866649]
[1734856920856,8.49850836,184.3,184.2,17.84866649]
[1734856921360,8.49850836,184.3,184.19,0.81410358]
[1734856925273,8.49850836,184.3,184.2,23.776884]
[1734856925459,8.0346,184.3,184.21,18.66260193]
[1734856925774,8.49850836,184.3,184.18,23.776884]
[1734856926139,8.49850836,184.3,184.18,42.4396069]
[1734856926550,8.0346,184.3,184.18,42.4396069]
[1734856927075,8.0346,184.3,184.19,17.84866649]
[1734856927253,8.0346,184.3,184.2,42.43945949]
[1734856927442,8.46563553,184.32,184.25,23.776884]
[1734856927643,17.72919177,184.33,184.26,0.81373572]
[1734856928162,0.46390836,184.32,184.21,23.776884]
[1734856928666,0.46390836,184.32,184.22,0.81394774]
[1734856929044,20.0,184.32,184.22,0.81394774]
[1734856929244,0.46390836,184.31,184.22,0.81394774]
[1734856929742,0.46390836,184.31,184.21,23.776884]
[1734856929941,20.46390836,184.31,184.21,23.776884]
[1734856930572,20.46390836,184.31,184.18,17.84866649]
[1734856930773,20.46390836,184.31,184.17,41.62555049]
[1734856931153,28.92954389,184.31,184.17,41.62555049]
[1734856931352,20.0,184.3,184.17,41.62555049]
[1734856931653,20.0,184.28,184.17,41.62555049]
[1734856932163,20.0,184.28,184.18,0.81406166]
[1734856933867,0.46390836,184.29,184.18,0.81406166]
[1734856934067,20.0,184.25,184.16,0.81405948]
[1734856934286,0.46390836,184.24,184.11,17.84866649]
[1734856934589,8.1528,184.23,184.09,17.84866649]
[1734856934749,0.46390836,184.22,184.1,17.84866649]
[1734856934948,8.1528,184.23,184.11,18.66308092]
[1734856935240,8.1528,184.23,184.12,17.84866649]